Workbook

Sheet Ejecuc
A2: SISTEMA DE PRESUPUESTO DISTRITAL - PREDIS
A3: EJECUCIÓN PRESUPUESTO | L3: =+Plano!A5 -> 0 | M3: =MID(L3,10,4) -> 
A4: INFORME DE EJECUCIONES DEL PRESUPUESTO DE GASTOS E INVERSIONES | L4: =+Plano!A6 -> 0 | M4: =MID(L4,5,2) -> 
M5: =VALUE(M4) -> 
A6: ENTIDAD: | F6: MES: | I6: ABRIL | L6: 1 | M6: ENERO
A7: UNIDAD EJECUTORA: | F7: VIGENCIA FISCAL: | I7: =+M3 ->  | L7: 2 | M7: FEBRERO
A8: CÓDIGO | B8: NOMBRE | C8: APROPIACION DISPONIBLE | D8: COMPROMISOS MES | E8: COMPROMISOS | G8: GIROS MES | H8: AUTORIZACIONES DE GIRO | L8: 3 | M8: MARZO
A9: 3 | B9: GASTOS | C9: 198543492000 | D9: 2094343040 | E9: 81829517015 | F9: =+E9/C9 -> 0.4121490772 | G9: 3730568311 | H9: 22724858289 | I9: =IF(C9=" ,00"," ",+H9/C9) -> 0.1144578352 | L9: 4 | M9: ABRIL
A10: 3-1 | B10: GASTOS DE FUNCIONAMIENTO | C10: 22831867000 | D10: 1220201827 | E10: 7621986453 | F10: =+E10/C10 -> 0.333831064 | G10: 1478593731 | H10: 5337656848 | I10: =IF(C10=" ,00"," ",+H10/C10) -> 0.2337810065 | L10: 5 | M10: MAYO
A11: 3-1-1 | B11: Gastos de personal | C11: 19088692000 | D11: 1181359929 | E11: 4647225998 | F11: 0.2434543969 | G11: 1185113883 | H11: 4567506094 | I11: 0.2392781074 | L11: 6 | M11: JUNIO
A12: 3-1-1-01 | B12: Planta de personal permanente | C12: 19088692000 | D12: 1181359929 | E12: 4647225998 | F12: 0.2434543969 | G12: 1185113883 | H12: 4567506094 | I12: 0.2392781074 | L12: 7 | M12: JULIO
A13: 3-1-1-01-01 | B13: Factores constitutivos de salario | C13: 14028447403 | D13: 891931501 | E13: 3695524426 | F13: 0.2634307504 | G13: 897791343 | H13: 3617910410 | I13: 0.2578981341 | L13: 8 | M13: AGOSTO
A14: 3-1-1-01-01-01 | B14: Factores salariales comunes | C14: 9990318403 | D14: 692166660 | E14: 2866473713 | F14: 0.2869251607 | G14: 698026502 | H14: 2788859697 | I14: 0.2791562375 | L14: 9 | M14: SEPTIEMBRE
A15: 3-1-1-01-01-01-0001 | B15: Sueldo básico | C15: 7290228403 | D15: 590281261 | E15: 2372098133 | F15: 0.3253804959 | G15: 597851801 | H15: 2296194815 | I15: 0.3149688443 | L15: 10 | M15: OCTUBRE
A16: 3-1-1-01-01-01-0004 | B16: Gastos de representación | C16: 771188000 | D16: 58179561 | E16: 236232465 | F16: 0.3063227968 | G16: 58179561 | H16: 236232465 | I16: 0.3063227968 | L16: 11 | M16: NOVIEMBRE
A17: 3-1-1-01-01-01-0005 | B17: Horas Extras, Dominicales, Festivos, Recargo Nocturno y Trabajo Suplementario | C17: 83247000 | D17: 1329293 | E17: 5446202 | F17: 0.0654222014 | G17: 1329293 | H17: 5446202 | I17: 0.0654222014 | L17: 12 | M17: DICIEMBRE
A18: 3-1-1-01-01-01-0006 | B18: Auxilio de transporte | C18: 1106000 | D18: 97032 | E18: 388128 | F18: 0.3509294756 | G18: 97032 | H18: 388128 | I18: 0.3509294756
A19: 3-1-1-01-01-01-0007 | B19: Subsidio de alimentación | C19: 12755000 | D19: 887308 | E19: 3475280 | F19: 0.2724641317 | G19: 887308 | H19: 3475280 | I19: 0.2724641317
A20: 3-1-1-01-01-01-0008 | B20: Bonificación por servicios prestados | C20: 240907000 | D20: 5554592 | E20: 131266337 | F20: 0.5448838639 | G20: 5554592 | H20: 131266337 | I20: 0.5448838639
A21: 3-1-1-01-01-01-0010 | B21: Prima de navidad | C21: 1074930000 | D21: 830812 | E21: 1350190 | F21: 0.001256072488 | G21: 143973 | H21: 663351 | I21: 0.0006171108816
A22: 3-1-1-01-01-01-0011 | B22: Prima de vacaciones | C22: 515957000 | D22: 35006801 | E22: 116216978 | F22: 0.225245472 | G22: 33982942 | H22: 115193119 | I22: 0.2232610838
A23: 3-1-1-01-01-02 | B23: Factores salariales especiales | C23: 4038129000 | D23: 199764841 | E23: 829050713 | F23: 0.2053056534 | G23: 199764841 | H23: 829050713 | I23: 0.2053056534
A24: 3-1-1-01-01-02-0001 | B24: Prima de antigüedad | C24: 149845000 | D24: 13114773 | E24: 53139069 | F24: 0.3546269078 | G24: 13114773 | H24: 53139069 | I24: 0.3546269078
A25: 3-1-1-01-01-02-0002 | B25: Prima Técnica | C25: 2699255000 | D25: 186650068 | E25: 775911644 | F25: 0.287453999 | G25: 186650068 | H25: 775911644 | I25: 0.287453999
A26: 3-1-1-01-01-02-0003 | B26: Prima Semestral | C26: 1189029000 | D26: ,00 | E26: ,00 | F26: 0 | G26: ,00 | H26: ,00 | I26: 0
A27: 3-1-1-01-02 | B27: Contribuciones inherentes a la nómina | C27: 4859646000 | D27: 280475033 | E27: 844594268 | F27: 0.1737974881 | G27: 279763544 | H27: 843882779 | I27: 0.1736510806
A28: 3-1-1-01-02-01 | B28: Aportes a la seguridad social en pensiones | C28: 1353042000 | D28: 101810621 | E28: 319217953 | F28: 0.2359261228 | G28: 101810621 | H28: 319217953 | I28: 0.2359261228
A29: 3-1-1-01-02-01-0001 | B29: Aportes a la seguridad social en pensiones públicas | C29: 580662000 | D29: 56953261 | E29: 178166845 | F29: 0.3068340015 | G29: 56953261 | H29: 178166845 | I29: 0.3068340015
A30: 3-1-1-01-02-01-0002 | B30: Aportes a la seguridad social en pensiones privadas | C30: 772380000 | D30: 44857360 | E30: 141051108 | F30: 0.182618799 | G30: 44857360 | H30: 141051108 | I30: 0.182618799
A31: 3-1-1-01-02-02 | B31: Aportes a la seguridad social en salud | C31: 958433000 | D31: 71879921 | E31: 225751953 | F31: 0.2355427589 | G31: 71879921 | H31: 225751953 | I31: 0.2355427589
A32: 3-1-1-01-02-02-0002 | B32: Aportes a la seguridad social en salud privada | C32: 958433000 | D32: 71879921 | E32: 225751953 | F32: 0.2355427589 | G32: 71879921 | H32: 225751953 | I32: 0.2355427589
A33: 3-1-1-01-02-03 | B33: Aportes de cesantías | C33: 1306127000 | D33: 10190591 | E33: 30785962 | F33: 0.02357042003 | G33: 9479102 | H33: 30074473 | I33: 0.02302568816
A34: 3-1-1-01-02-03-0001 | B34: Aportes de cesantías a fondos públicos | C34: 612791000 | D34: 10051137 | E34: 30646508 | F34: 0.05001135461 | G34: 9339648 | H34: 29935019 | I34: 0.04885029153
A35: 3-1-1-01-02-03-0002 | B35: Aportes de cesantías a fondos privados | C35: 693336000 | D35: 139454 | E35: 139454 | F35: 0.0002011348033 | G35: 139454 | H35: 139454 | I35: 0.0002011348033
A36: 3-1-1-01-02-04 | B36: Aportes a cajas de compensación familiar | C36: 519242000 | D36: 40083600 | E36: 110691900 | F36: 0.213179789 | G36: 40083600 | H36: 110691900 | I36: 0.213179789
A37: 3-1-1-01-02-04-0001 | B37: Compensar | C37: 519242000 | D37: 40083600 | E37: 110691900 | F37: 0.213179789 | G37: 40083600 | H37: 110691900 | I37: 0.213179789
A38: 3-1-1-01-02-05 | B38: Aportes generales al sistema de riesgos laborales | C38: 78864000 | D38: 6378500 | E38: 19702700 | F38: 0.2498313552 | G38: 6378500 | H38: 19702700 | I38: 0.2498313552
A39: 3-1-1-01-02-05-0002 | B39: Aportes generales al sistema de riesgos laborales privados | C39: 78864000 | D39: 6378500 | E39: 19702700 | F39: 0.2498313552 | G39: 6378500 | H39: 19702700 | I39: 0.2498313552
A40: 3-1-1-01-02-06 | B40: Aportes al ICBF | C40: 389438000 | D40: 30066100 | E40: 83026500 | F40: 0.213195682 | G40: 30066100 | H40: 83026500 | I40: 0.213195682
A41: 3-1-1-01-02-06-0001 | B41: Aportes al ICBF de funcionarios | C41: 389438000 | D41: 30066100 | E41: 83026500 | F41: 0.213195682 | G41: 30066100 | H41: 83026500 | I41: 0.213195682
A42: 3-1-1-01-02-07 | B42: Aportes al SENA | C42: 64922000 | D42: 5018600 | E42: 13860700 | F42: 0.2134977357 | G42: 5018600 | H42: 13860700 | I42: 0.2134977357
A43: 3-1-1-01-02-07-0001 | B43: Aportes al SENA de funcionarios | C43: 64922000 | D43: 5018600 | E43: 13860700 | F43: 0.2134977357 | G43: 5018600 | H43: 13860700 | I43: 0.2134977357
A44: 3-1-1-01-02-08 | B44: Aportes a la ESAP | C44: 64922000 | D44: 5018600 | E44: 13860700 | F44: 0.2134977357 | G44: 5018600 | H44: 13860700 | I44: 0.2134977357
A45: 3-1-1-01-02-08-0001 | B45: Aportes a la ESAP de funcionarios | C45: 64922000 | D45: 5018600 | E45: 13860700 | F45: 0.2134977357 | G45: 5018600 | H45: 13860700 | I45: 0.2134977357
A46: 3-1-1-01-02-09 | B46: Aportes a escuelas industriales e institutos técnicos | C46: 124656000 | D46: 10028500 | E46: 27695900 | F46: 0.2221786356 | G46: 10028500 | H46: 27695900 | I46: 0.2221786356
A47: 3-1-1-01-02-09-0001 | B47: Aportes a escuelas industriales e institutos técnicos de funcionarios | C47: 124656000 | D47: 10028500 | E47: 27695900 | F47: 0.2221786356 | G47: 10028500 | H47: 27695900 | I47: 0.2221786356
A48: 3-1-1-01-03 | B48: Remuneraciones no constitutivas de factor salarial | C48: 200598597 | D48: 8953395 | E48: 107107304 | F48: 0.5339384502 | G48: 7558996 | H48: 105712905 | I48: 0.52698726
A49: 3-1-1-01-03-02 | B49: Bonificación por recreación | C49: 40758000 | D49: 2781559 | E49: 9097233 | F49: 0.223201163 | G49: 2684049 | H49: 8999723 | I49: 0.2208087492
A50: 3-1-1-01-03-05 | B50: Reconocimiento por permanencia en el servicio público - Bogotá D.C. | C50: 92359000 | D50: ,00 | E50: 75803978 | F50: 0.8207535595 | G50: ,00 | H50: 75803978 | I50: 0.8207535595
A51: 3-1-1-01-03-07 | B51: Reconocimiento por Coordinación | C51: 58688000 | D51: 4644786 | E51: 19418759 | F51: 0.3308812534 | G51: 4644786 | H51: 19418759 | I51: 0.3308812534
A52: 3-1-1-02 | B52: Personal supernumerario y temporal | C52: ,00 | D52: ,00 | E52: ,00 | F52: 0 | G52: ,00 | H52: ,00 | I52: 0
A53: 3-1-1-02-01 | B53: Factores constitutivos de salario | C53: ,00 | D53: ,00 | E53: ,00 | F53: 0 | G53: ,00 | H53: ,00 | I53: 0
A54: 3-1-1-02-01-01 | B54: Factores salariales comunes | C54: ,00 | D54: ,00 | E54: ,00 | F54: 0 | G54: ,00 | H54: ,00 | I54: 0
A55: 3-1-1-02-01-01-0001 | B55: Sueldo básico | C55: ,00 | D55: ,00 | E55: ,00 | F55: 0 | G55: ,00 | H55: ,00 | I55: 0
A56: 3-1-1-02-01-02 | B56: Factores salariales especiales | C56: ,00 | D56: ,00 | E56: ,00 | F56: 0 | G56: ,00 | H56: ,00 | I56: 0
A57: 3-1-1-02-01-02-0001 | B57: Prima de antigüedad | C57: ,00 | D57: ,00 | E57: ,00 | F57: 0 | G57: ,00 | H57: ,00 | I57: 0
A58: 3-1-1-02-02 | B58: Contribuciones inherentes a la nómina | C58: ,00 | D58: ,00 | E58: ,00 | F58: 0 | G58: ,00 | H58: ,00 | I58: 0
A59: 3-1-1-02-02-01 | B59: Aportes a la seguridad social en pensiones | C59: ,00 | D59: ,00 | E59: ,00 | F59: 0 | G59: ,00 | H59: ,00 | I59: 0
A60: 3-1-1-02-02-01-0001 | B60: Aportes a la seguridad social en pensiones públicas | C60: ,00 | D60: ,00 | E60: ,00 | F60: 0 | G60: ,00 | H60: ,00 | I60: 0
A61: 3-1-1-02-02-03 | B61: Aportes de cesantías | C61: ,00 | D61: ,00 | E61: ,00 | F61: 0 | G61: ,00 | H61: ,00 | I61: 0
A62: 3-1-1-02-02-03-0001 | B62: Aportes de cesantías a fondos públicos | C62: ,00 | D62: ,00 | E62: ,00 | F62: 0 | G62: ,00 | H62: ,00 | I62: 0
A63: 3-1-1-02-02-04 | B63: Aportes a cajas de compensación familiar | C63: ,00 | D63: ,00 | E63: ,00 | F63: 0 | G63: ,00 | H63: ,00 | I63: 0
A64: 3-1-1-02-02-04-0001 | B64: Compensar | C64: ,00 | D64: ,00 | E64: ,00 | F64: 0 | G64: ,00 | H64: ,00 | I64: 0
A65: 3-1-2 | B65: Adquisición de bienes y servicios | C65: 3742675000 | D65: 38841898 | E65: 2974760455 | F65: 0.794822007 | G65: 293479848 | H65: 770150754 | I65: =IF(C65=" ,00"," ",+H65/C65) -> 0.2057754825
A66: 3-1-2-02 | B66: Adquisiciones diferentes de activos no financieros | C66: 3742675000 | D66: 38841898 | E66: 2974760455 | F66: 0.794822007 | G66: 293479848 | H66: 770150754 | I66: 0.2057754825
A67: 3-1-2-02-01 | B67: Materiales y suministros | C67: 153510372 | D67: ,00 | E67: 143430398 | F67: 0.9343368538 | G67: 6916263 | H67: 6916263 | I67: 0.04505404364
A68: 3-1-2-02-01-01 | B68: Productos alimenticios, bebidas y tabaco; textiles, prendas de vestir y productos de cuero | C68: 1129000 | D68: ,00 | E68: 1129000 | F68: 1 | G68: 23205 | H68: 23205 | I68: 0.02055358725
A69: 3-1-2-02-01-01-0005 | B69: Artículos textiles (excepto prendas de vestir) | C69: 1129000 | D69: ,00 | E69: 1129000 | F69: 1 | G69: 23205 | H69: 23205 | I69: 0.02055358725
A70: 3-1-2-02-01-01-0006 | B70: Dotación (prendas de vestir y calzado) | C70: ,00 | D70: ,00 | E70: ,00 | F70: 0 | G70: ,00 | H70: ,00 | I70: 0
A71: 3-1-2-02-01-02 | B71: Otros bienes transportables (excepto productos metálicos, maquinaria y equipo | C71: 102712026 | D71: ,00 | E71: 94632052 | F71: 0.9213337102 | G71: 4898806 | H71: 4898806 | I71: 0.04769457084
A72: 3-1-2-02-01-02-0002 | B72: Pasta o pulpa, papel y productos de papel; impresos y artículos relacionados | C72: 25328000 | D72: ,00 | E72: 23328000 | F72: 0.9210360076 | G72: 2337557 | H72: 2337557 | I72: 0.09229141661
A73: 3-1-2-02-01-02-0003 | B73: Productos de hornos de coque, de refinación de petróleo y combustible | C73: 10816000 | D73: ,00 | E73: 10816000 | F73: 1 | G73: 1449492 | H73: 1449492 | I73: 0.1340136834
A74: 3-1-2-02-01-02-0006 | B74: Productos de caucho y plástico | C74: 54733026 | D74: ,00 | E74: 48653052 | F74: =+E74/C74 -> 0.8889158074 | G74: ,00 | H74: ,00 | I74: =IF(C74=" ,00"," ",+H74/C74) -> 0
A75: 3-1-2-02-01-02-0008 | B75: Muebles; otros bienes transportables n.c.p. | C75: 11835000 | D75: ,00 | E75: 11835000 | F75: 1 | G75: 1111757 | H75: 1111757 | I75: 0.09393806506
A76: 3-1-2-02-01-03 | B76: Productos metálicos | C76: 49669346 | D76: ,00 | E76: 47669346 | F76: 0.9597337158 | G76: 1994252 | H76: 1994252 | I76: 0.04015055886
A77: 3-1-2-02-01-03-0002 | B77: Productos metálicos elaborados (excepto maquinaria y equipo) | C77: 4777000 | D77: ,00 | E77: 3777000 | F77: 0.7906635964 | G77: ,00 | H77: ,00 | I77: 0
A78: 3-1-2-02-01-03-0003 | B78: Maquinaria para uso general | C78: 1000000 | D78: ,00 | E78: ,00 | F78: 0 | G78: ,00 | H78: ,00 | I78: 0
A79: 3-1-2-02-01-03-0005 | B79: Maquinaria de oficina, contabilidad e informática | C79: 36340974 | D79: ,00 | E79: 36340974 | F79: 1 | G79: 1994252 | H79: 1994252 | I79: 0.05487612963
A80: 3-1-2-02-01-03-0006 | B80: Maquinaria y aparatos eléctricos | C80: 7551372 | D80: ,00 | E80: 7551372 | F80: 1 | G80: ,00 | H80: ,00 | I80: 0
A81: 3-1-2-02-02 | B81: Adquisición de servicios | C81: 3589164628 | D81: 38841898 | E81: 2831330057 | F81: 0.788854887 | G81: 286563585 | H81: 763234491 | I81: 0.2126496191
A82: 3-1-2-02-02-01 | B82: Servicios de venta y de distribución; alojamiento; servicios de suministro de comidas y bebidas; servicios de transporte; y servicios de distribución de electricidad, gas y agua | C82: 634154527 | D82: ,00 | E82: 545766037 | F82: 0.8606199495 | G82: 64613735 | H82: 97502978 | I82: 0.1537527114
A83: 3-1-2-02-02-01-0002 | B83: Servicios de transporte de pasajeros | C83: 1500000 | D83: ,00 | E83: ,00 | F83: 0 | G83: ,00 | H83: ,00 | I83: 0
A84: 3-1-2-02-02-01-0004 | B84: Servicios de alquiler de vehículos de transporte con operario | C84: 440849527 | D84: ,00 | E84: 373917339 | F84: =+E84/C84 -> 0.8481745269 | G84: 34104050 | H84: 66993293 | I84: =IF(C84=" ,00"," ",+H84/C84) -> 0.1519640805
A85: 3-1-2-02-02-01-0006 | B85: Servicios postales y de mensajería | C85: 191805000 | D85: ,00 | E85: 171848698 | F85: =+E85/C85 -> 0.8959552566 | G85: 30509685 | H85: 30509685 | I85: =IF(C85=" ,00"," ",+H85/C85) -> 0.1590661609
A86: 3-1-2-02-02-01-0006-001 | B86: Servicios de mensajería | C86: 191805000 | D86: ,00 | E86: 171848698 | F86: =+E86/C86 -> 0.8959552566 | G86: 30509685 | H86: 30509685 | I86: =IF(C86=" ,00"," ",+H86/C86) -> 0.1590661609
A87: 3-1-2-02-02-02 | B87: Servicios financieros y servicios conexos, servicios inmobiliarios y servicios de leasing | C87: 895545496 | D87: 186793 | E87: 633197432 | F87: 0.7070522211 | G87: 41332109 | H87: 235982937 | I87: 0.2635074801
A88: 3-1-2-02-02-02-0001 | B88: Servicios financieros y servicios conexos | C88: 124146000 | D88: 186793 | E88: 100913617 | F88: 0.812862412 | G88: 186793 | H88: 100081024 | I88: 0.8061558488
A89: 3-1-2-02-02-02-0001-007 | B89: Servicios de seguros de vehículos automotores | C89: 6959000 | D89: ,00 | E89: 5802040 | F89: 0.8337462279 | G89: ,00 | H89: 5802040 | I89: 0.8337462279
A90: 3-1-2-02-02-02-0001-009 | B90: Servicios de seguros generales de responsabilidad civil | C90: 88506000 | D90: ,00 | E90: 73791541 | F90: 0.833746198 | G90: ,00 | H90: 73791541 | I90: 0.833746198
A91: 3-1-2-02-02-02-0001-010 | B91: Servicios de seguro obligatorio de accidentes de tránsito (SOAT) | C91: 673000 | D91: ,00 | E91: 673000 | F91: 1 | G91: ,00 | H91: 673000 | I91: 1
A92: 3-1-2-02-02-02-0001-011 | B92: Servicios de administración de fondos de pensiones y cesantías | C92: 3175000 | D92: 186793 | E92: 622956 | F92: 0.1962066142 | G92: 186793 | H92: 622956 | I92: 0.1962066142
A93: 3-1-2-02-02-02-0001-012 | B93: Otros servicios de seguros distintos de los seguros de vida n.c.p. | C93: 24833000 | D93: ,00 | E93: 20024080 | F93: 0.8063496154 | G93: ,00 | H93: 19191487 | I93: 0.7728219305
A94: 3-1-2-02-02-02-0002 | B94: Servicios inmobiliarios | C94: 589611992 | D94: ,00 | E94: 474539311 | F94: 0.804833208 | G94: 41145316 | H94: 101362409 | I94: 0.1719137507
A95: 3-1-2-02-02-02-0002-001 | B95: Servicios de alquiler o arrendamiento con o sin opción de compra relativos a bienes inmuebles no residenciales propios o arrendados | C95: 589611992 | D95: ,00 | E95: 474539311 | F95: 0.804833208 | G95: 41145316 | H95: 101362409 | I95: 0.1719137507
A96: 3-1-2-02-02-02-0003 | B96: Servicios de arrendamiento o alquiler sin operario | C96: 181787504 | D96: ,00 | E96: 57744504 | F96: 0.3176483682 | G96: ,00 | H96: 34539504 | I96: 0.1899993302
A97: 3-1-2-02-02-02-0003-001 | B97: Servicios de arrendamiento o alquiler de automóviles y furgonetas sin operario | C97: ,00 | D97: ,00 | E97: ,00 | G97: ,00 | H97: ,00
A98: 3-1-2-02-02-02-0003-005 | B98: Derechos de uso de productos de propiedad intelectual y otros productos similares | C98: 181787504 | D98: ,00 | E98: 57744504 | F98: =+E98/C98 -> 0.3176483682 | G98: ,00 | H98: 34539504 | I98: =IF(C98=" ,00"," ",+H98/C98) -> 0.1899993302
A99: 3-1-2-02-02-03 | B99: Servicios prestados a las empresas y servicios de producción | C99: 1715539846 | D99: 27728145 | E99: 1418001799 | F99: 0.8265630217 | G99: 163879022 | H99: 377496787 | I99: 0.2200454789
A100: 3-1-2-02-02-03-0002 | B100: Servicios jurídicos y contables | C100: 4600000 | D100: ,00 | E100: 219912 | F100: 0.04780695652 | G100: ,00 | H100: 219912 | I100: 0.04780695652
A101: 3-1-2-02-02-03-0002-001 | B101: Servicios de documentación y certificación jurídica | C101: 4600000 | D101: ,00 | E101: 219912 | F101: 0.04780695652 | G101: ,00 | H101: 219912 | I101: 0.04780695652
A102: 3-1-2-02-02-03-0003 | B102: Otros servicios profesionales, científicos y técnicos | C102: 250000000 | D102: 21691495 | E102: 120254395 | F102: 0.48101758 | G102: 6035000 | H102: 12070000 | I102: 0.04828
A103: 3-1-2-02-02-03-0003-001 | B103: Servicios de consultoría en administración y servicios de gestión; servicios de tecnología de la información | C103: ,00 | D103: ,00 | E103: ,00 | F103: 0 | G103: ,00 | H103: ,00 | I103: 0
A104: 3-1-2-02-02-03-0003-013 | B104: Otros servicios profesionales y técnicos n.c.p. | C104: 240000000 | D104: 17340000 | E104: 115902900 | F104: 0.48292875 | G104: 6035000 | H104: 12070000 | I104: 0.05029166667
A105: 3-1-2-02-02-03-0004 | B105: Servicios de telecomunicaciones, transmisión y suministro de información | C105: 221191000 | D105: 6036650 | E105: 130463180 | F105: 0.5898213761 | G105: 14877660 | H105: 45589034 | I105: 0.206107093
A106: 3-1-2-02-02-03-0004-001 | B106: Servicios de telefonía fija | C106: 51000000 | D106: 3104860 | E106: 12409080 | F106: 0.2433152941 | G106: 3104860 | H106: 12409080 | I106: 0.2433152941
A107: 3-1-2-02-02-03-0004-002 | B107: Servicios de telecomunicaciones móviles | C107: 44100000 | D107: 2931790 | E107: 11961980 | F107: 0.271246712 | G107: 2931790 | H107: 11961980 | I107: 0.271246712
A108: 3-1-2-02-02-03-0004-004 | B108: Servicios de telecomunicaciones a través de internet | C108: 121091000 | D108: ,00 | E108: 106092120 | F108: 0.8761354684 | G108: 8841010 | H108: 21217974 | I108: 0.1752233775
A109: 3-1-2-02-02-03-0004-007 | B109: Servicios de transmisión de programas de radio y televisión | C109: 5000000 | D109: ,00 | E109: ,00 | F109: 0 | G109: ,00 | H109: ,00 | I109: 0
A110: 3-1-2-02-02-03-0005 | B110: Servicios de soporte | C110: 794248230 | D110: ,00 | E110: 732199016 | F110: 0.9218767991 | G110: 88441043 | H110: 137500751 | I110: 0.1731206263
A111: 3-1-2-02-02-03-0005-001 | B111: Servicios de protección (guardas de seguridad) | C111: 491796764 | D111: ,00 | E111: 458341200 | F111: 0.9319727854 | G111: 40764965 | H111: 55427204 | I111: 0.1127034744
A112: 3-1-2-02-02-03-0005-002 | B112: Servicios de limpieza general | C112: 259411466 | D112: ,00 | E112: 235817816 | F112: 0.909049317 | G112: 28909406 | H112: 63306875 | I112: 0.2440403887
A113: 3-1-2-02-02-03-0005-004 | B113: Servicios de correo | C113: ,00 | D113: ,00 | E113: ,00 | F113: 0 | G113: ,00 | H113: ,00 | I113: 0
A114: 3-1-2-02-02-03-0003-004 | B114: Servicios de suministro de infraestructura de hosting y de tecnología de la información (TI) | C114: 10000000 | D114: 4351495 | E114: 4351495 | F114: =+E114/C114 -> 0.4351495 | G114: ,00 | H114: ,00 | I114: =IF(C114=" ,00"," ",+H114/C114) -> 0
A115: 3-1-2-02-02-03-0003-013 | B115: Otros servicios profesionales y técnicos n.c.p. | C115: 240000000 | D115: 17340000 | E115: 115902900 | F115: =+E115/C115 -> 0.48292875 | G115: 6035000 | H115: 12070000 | I115: =IF(C115=" ,00"," ",+H115/C115) -> 0.05029166667
A116: 3-1-2-02-02-03-0004 | B116: Servicios de telecomunicaciones, transmisión y suministro de información | C116: 221191000 | D116: 6036650 | E116: 130463180 | F116: =+E116/C116 -> 0.5898213761 | G116: 14877660 | H116: 45589034 | I116: =IF(C116=" ,00"," ",+H116/C116) -> 0.206107093
A117: 3-1-2-02-02-03-0004-001 | B117: Servicios de telefonía fija | C117: 51000000 | D117: 3104860 | E117: 12409080 | F117: =+E117/C117 -> 0.2433152941 | G117: 3104860 | H117: 12409080 | I117: =IF(C117=" ,00"," ",+H117/C117) -> 0.2433152941
A118: 3-1-2-02-02-03-0004-002 | B118: Servicios de telecomunicaciones móviles | C118: 44100000 | D118: 2931790 | E118: 11961980 | F118: =+E118/C118 -> 0.271246712 | G118: 2931790 | H118: 11961980 | I118: =IF(C118=" ,00"," ",+H118/C118) -> 0.271246712
A119: 3-1-2-02-02-03-0004-004 | B119: Servicios de telecomunicaciones a través de internet | C119: 121091000 | D119: ,00 | E119: 106092120 | F119: =+E119/C119 -> 0.8761354684 | G119: 8841010 | H119: 21217974 | I119: =IF(C119=" ,00"," ",+H119/C119) -> 0.1752233775
A120: 3-1-2-02-02-03-0004-007 | B120: Servicios de transmisión de programas de radio y televisión | C120: 5000000 | D120: ,00 | E120: ,00 | F120: =+E120/C120 -> 0 | G120: ,00 | H120: ,00 | I120: =IF(C120=" ,00"," ",+H120/C120) -> 0
A121: 3-1-2-02-02-03-0005 | B121: Servicios de soporte | C121: 794248230 | D121: ,00 | E121: 732199016 | F121: =+E121/C121 -> 0.9218767991 | G121: 88441043 | H121: 137500751 | I121: =IF(C121=" ,00"," ",+H121/C121) -> 0.1731206263
A122: 3-1-2-02-02-03-0005-001 | B122: Servicios de protección (guardas de seguridad) | C122: 491796764 | D122: ,00 | E122: 458341200 | F122: =+E122/C122 -> 0.9319727854 | G122: 40764965 | H122: 55427204 | I122: =IF(C122=" ,00"," ",+H122/C122) -> 0.1127034744
A123: 3-1-2-02-02-03-0005-002 | B123: Servicios de limpieza general | C123: 259411466 | D123: ,00 | E123: 235817816 | F123: =+E123/C123 -> 0.909049317 | G123: 28909406 | H123: 63306875 | I123: =IF(C123=" ,00"," ",+H123/C123) -> 0.2440403887
A124: 3-1-2-02-02-03-0005-003 | B124: Servicios de copia y reproducción | C124: 1000000 | D124: ,00 | E124: ,00 | F124: =+E124/C124 -> 0 | G124: ,00 | H124: ,00 | I124: =IF(C124=" ,00"," ",+H124/C124) -> 0
A125: 3-1-2-02-02-03-0005-004 | B125: Servicios de correo | C125: ,00 | D125: ,00 | E125: ,00 | F125: 0 | G125: ,00 | H125: ,00 | I125: 0
A126: 3-1-2-02-02-03-0005-006 | B126: Servicios de organización y asistencia de convenciones y ferias | C126: 42040000 | D126: ,00 | E126: 38040000 | F126: 0.9048525214 | G126: 18766672 | H126: 18766672 | I126: 0.4464003806
A127: 3-1-2-02-02-03-0005-007 | B127: Otros servicios de apoyo y de información no clasificados previamente | C127: ,00 | D127: ,00 | E127: ,00 | F127: 0 | G127: ,00 | H127: ,00 | I127: 0
A128: 3-1-2-02-02-03-0006 | B128: Servicios de mantenimiento, reparación e instalación (excepto servicios de construcción) | C128: 445500616 | D128: ,00 | E128: 434865296 | F128: 0.9761272608 | G128: 54525319 | H128: 182117090 | I128: 0.4087920049
A129: 3-1-2-02-02-03-0006-003 | B129: Servicios de mantenimiento y reparación de computadores y equipo periférico | C129: 10000000 | D129: ,00 | E129: ,00 | F129: 0 | G129: ,00 | H129: ,00 | I129: 0
A130: 3-1-2-02-02-03-0006-005 | B130: Servicios de mantenimiento y reparación de otra maquinaria y otro equipo | C130: 21803000 | D130: ,00 | E130: 21167680 | F130: =+E130/C130 -> 0.9708608907 | G130: ,00 | H130: 5020643 | I130: =IF(C130=" ,00"," ",+H130/C130) -> 0.2302730358
A131: 3-1-2-02-02-03-0006-012 | B131: Servicios de reparación de otros bienes | C131: 413697616 | D131: ,00 | E131: 413697616 | F131: 1 | G131: 54525319 | H131: 177096447 | I131: 0.428081865
A132: 3-1-2-02-02-03-0007 | B132: Otros servicios de fabricación; servicios de edición, impresión y reproducción; servicios de recuperación de materiales | C132: ,00 | D132: ,00 | E132: ,00 | F132: 0 | G132: ,00 | H132: ,00 | I132: 0
A133: 3-1-2-02-02-03-0007-002 | B133: Servicios de impresión | C133: ,00 | D133: ,00 | E133: ,00 | F133: 0 | G133: ,00 | H133: ,00 | I133: 0
A134: 3-1-2-02-02-04 | B134: Servicios administrativos del Gobierno | C134: 142000000 | D134: 10926960 | E134: 46440030 | F134: 0.3270424648 | G134: 10926960 | H134: 46440030 | I134: 0.3270424648
A135: 3-1-2-02-02-04-0001 | B135: Otros servicios públicos generales del Gobierno n.c.p. | C135: 142000000 | D135: 10926960 | E135: 46440030 | F135: 0.3270424648 | G135: 10926960 | H135: 46440030 | I135: 0.3270424648
A136: 3-1-2-02-02-04-0001-001 | B136: Energía | C136: 108000000 | D136: 8759660 | E136: 41747640 | F136: 0.3865522222 | G136: 8759660 | H136: 41747640 | I136: 0.3865522222
A137: 3-1-2-02-02-04-0001-002 | B137: Acueducto y alcantarillado | C137: 24000000 | D137: 1440170 | E137: 3240260 | F137: 0.1350108333 | G137: 1440170 | H137: 3240260 | I137: 0.1350108333
A138: 3-1-2-02-02-04-0001-003 | B138: Aseo | C138: 10000000 | D138: 727130 | E138: 1452130 | F138: 0.145213 | G138: 727130 | H138: 1452130 | I138: 0.145213
A139: 3-1-2-02-02-05 | B139: Viáticos y gastos de viaje | C139: ,00 | D139: ,00 | E139: ,00 | F139: 0 | G139: ,00 | H139: ,00 | I139: 0
A140: 3-1-2-02-02-06 | B140: Capacitación | C140: 39856000 | D140: ,00 | E140: 37856000 | F140: 0.9498193497 | G140: ,00 | H140: ,00 | I140: 0
A141: 3-1-2-02-02-07 | B141: Bienestar e incentivos | C141: 104932039 | D141: ,00 | E141: 96932039 | F141: 0.9237601778 | G141: 4637432 | H141: 4637432 | I141: 0.04419462391
A142: 3-1-2-02-02-08 | B142: Salud Ocupacional | C142: 57136720 | D142: ,00 | E142: 53136720 | F142: 0.9299924812 | G142: 1174327 | H142: 1174327 | I142: 0.02055292988
A143: 3-3 | B143: INVERSIÓN | C143: 175711625000 | D143: 874141213 | E143: 74207530562 | F143: 0.4223256746 | G143: 2251974580 | H143: 17387201441 | I143: 0.09895305129
A144: 3-3-1 | B144: DIRECTA | C144: 175711625000 | D144: 874141213 | E144: 74207530562 | F144: 0.4223256746 | G144: 2251974580 | H144: 17387201441 | I144: 0.09895305129
A145: 3-3-1-15 | B145: Bogotá Mejor Para Todos | C145: 175711625000 | D145: 874141213 | E145: 74207530562 | F145: 0.4223256746 | G145: 2251974580 | H145: 17387201441 | I145: 0.09895305129
A146: 3-3-1-15-01 | B146: Pilar Igualdad de calidad de vida | C146: 37994000000 | D146: 346261919 | E146: 36378787544 | F146: 0.9574876966 | G146: 901592109 | H146: 14220424519 | I146: 0.3742807948
A147: 3-3-1-15-01-11 | B147: Mejores oportunidades para el desarrollo a través de la cultura, la recreación y el deporte | C147: 37994000000 | D147: 346261919 | E147: 36378787544 | F147: 0.9574876966 | G147: 901592109 | H147: 14220424519 | I147: 0.3742807948
A148: 3-3-1-15-01-11-0997 | B148: Fortalecimiento de los procesos y de agentes de formación del sector | C148: 657000000 | D148: ,00 | E148: 360808933 | F148: 0.5491764581 | G148: 27370900 | H148: 52921500 | I148: 0.08055022831
A149: 3-3-1-15-01-11-0997-124 | B149: Formación para la transformación del ser | C149: 657000000 | D149: ,00 | E149: 360808933 | F149: 0.5491764581 | G149: 27370900 | H149: 52921500 | I149: 0.08055022831
A150: 3-3-1-15-01-11-1008 | B150: Fomento y gestión para el desarrollo cultural | C150: 3773000000 | D150: 335761919 | E150: 2870898128 | F150: 0.7609059443 | G150: 596867765 | H150: 753730349 | I150: 0.1997695068
A151: 3-3-1-15-01-11-1011 | B151: Lectura, escritura y redes de conocimiento | C151: 33564000000 | D151: 10500000 | E151: 33147080483 | F151: =+E151/C151 -> 0.9875783722 | G151: 277353444 | H151: 13413772670 | I151: =IF(C151=" ,00"," ",+H151/C151) -> 0.3996476186
A152: 3-3-1-15-02 | B152: Pilar Democracia urbana | C152: 124806805000 | D152: 382422527 | E152: 29661350922 | F152: =+E152/C152 -> 0.2376581223 | G152: 812461971 | H152: 896180065 | I152: =IF(C152=" ,00"," ",+H152/C152) -> 0.007180538473
A153: 3-3-1-15-02-17 | B153: Espacio público, derecho de todos | C153: 124806805000 | D153: 382422527 | E153: 29661350922 | F153: =+E153/C153 -> 0.2376581223 | G153: 812461971 | H153: 896180065 | I153: =IF(C153=" ,00"," ",+H153/C153) -> 0.007180538473
A154: 3-3-1-15-02-17-0992 | B154: Patrimonio e Infraestructura cultural fortalecida | C154: 124806805000 | D154: 382422527 | E154: 29661350922 | F154: 0.2376581223 | G154: 812461971 | H154: 896180065 | I154: 0.007180538473
A155: 3-3-1-15-03 | B155: Pilar Construcción de comunidad y cultura ciudadana | C155: 5445000000 | D155: 83492000 | E155: 1944573619 | F155: =+E155/C155 -> 0.3571301412 | G155: 182185500 | H155: 297022385 | I155: =IF(C155=" ,00"," ",+H155/C155) -> 0.05454956566
A156: 3-3-1-15-03-25 | B156: Cambio cultural y construcción del tejido social para la vida | C156: 5445000000 | D156: 83492000 | E156: 1944573619 | F156: 0.3571301412 | G156: 182185500 | H156: 297022385 | I156: 0.05454956566
A157: 3-3-1-15-03-25-0987 | B157: Saberes sociales para la cultura ciudadana y la transformación cultural | C157: 3015000000 | D157: 54992000 | E157: 1358463834 | F157: 0.4505684358 | G157: 129963500 | H157: 206642500 | I157: 0.06853814262
A158: 3-3-1-15-03-25-1016 | B158: Poblaciones diversas e interculturales | C158: 749000000 | D158: 12000000 | E158: 71678850 | F158: =+E158/C158 -> 0.0956993992 | G158: 5374000 | H158: 11850250 | I158: =IF(C158=" ,00"," ",+H158/C158) -> 0.01582142857
A159: 3-3-1-15-03-25-1137 | B159: Comunidades culturales para la paz | C159: 1681000000 | D159: 16500000 | E159: 514430935 | F159: 0.3060267311 | G159: 46848000 | H159: 78529635 | I159: 0.0467160232
A160: 3-3-1-15-07 | B160: Eje transversal Gobierno legítimo, fortalecimiento local y eficiencia | C160: 7465820000 | D160: 61964767 | E160: 6222818477 | F160: =+E160/C160 -> 0.8335077027 | G160: 355735000 | H160: 1973574472 | I160: =IF(C160=" ,00"," ",+H160/C160) -> 0.2643479848
A161: 3-3-1-15-07-42 | B161: Transparencia, gestión pública y servicio a la ciudadanía | C161: 2586000000 | D161: ,00 | E161: 1605542733 | F161: 0.6208595255 | G161: 213387000 | H161: 332563398 | I161: 0.1286014687
A162: 3-3-1-15-07-42-1009 | B162: Transparencia y gestión pública para todos | C162: 2586000000 | D162: ,00 | E162: 1605542733 | F162: 0.6208595255 | G162: 213387000 | H162: 332563398 | I162: 0.1286014687
A163: 3-3-1-15-07-43 | B163: Modernización institucional | C163: 1467000000 | D163: 1727767 | E163: 1285001044 | F163: =+E163/C163 -> 0.8759379986 | G163: 95810167 | H163: 202162566 | I163: =IF(C163=" ,00"," ",+H163/C163) -> 0.1378067935
A164: 3-3-1-15-07-43-1012 | B164: Fortalecimiento a la Gestión | C164: 1467000000 | D164: 1727767 | E164: 1285001044 | F164: 0.8759379986 | G164: 95810167 | H164: 202162566 | I164: 0.1378067935
A165: 3-3-1-15-07-44 | B165: Gobierno y ciudadanía digital | C165: 600000000 | D165: 60237000 | E165: 519454700 | F165: 0.8657578333 | G165: 40158000 | H165: 79080033 | I165: 0.131800055
A166: 3-3-1-15-07-44-1007 | B166: Información y ciudadanía digital para todos | C166: 600000000 | D166: 60237000 | E166: 519454700 | F166: =+E166/C166 -> 0.8657578333 | G166: 40158000 | H166: 79080033 | I166: =IF(C166=" ,00"," ",+H166/C166) -> 0.131800055
A167: 3-3-1-15-07-45 | B167: Gobernanza e influencia local, regional e internacional | C167: 2812820000 | D167: ,00 | E167: 2812820000 | F167: 1 | G167: 6379833 | H167: 1359768475 | I167: 0.4834182333
A168: 3-3-1-15-07-45-1018 | B168: Participación para la democracia cultural, recreativa y deportiva | C168: 2812820000 | D168: ,00 | E168: 2812820000 | F168: =+E168/C168 -> 1 | G168: 6379833 | H168: 1359768475 | I168: =IF(C168=" ,00"," ",+H168/C168) -> 0.4834182333
A169: Fuente: SHD-Predis
A170: Diseño y cálculos: SDCRD-DP

Sheet Plano
